Cogmind - Beta 10.2 @@@ ROGUE MODE // 2021.09.05 @ 23:55:50 Player: Xtrem532 Result: Destroyed by G-34 Mercenary with Small Laser Performance ------------- Evolutions (0) 0 Regions Visited (1) 200 Robots Destroyed (6) 30 Value Destroyed (159) 159 Prototype IDs (0) 0 Alien Tech Used (0) 0 Bonus (0) 0 TOTAL SCORE: 389 Bonus ------- None Cogmind --------- Core Integrity 0/250 Matter 300/300 Energy 200/250 System Corruption 1% Temperature Cool (15) Movement Core (100) Ox1 Location -10/Materials Parts ------- > --- POWER (1) -------- Ion Engine > --- PROPULSION (2) --- (None) > --- UTILITY (2) ------ (None) > --- WEAPON (2) ------- (None) > --- INVENTORY (4) ---- Improved Terrain Scanner Seismic Analyzer Peak State ------------ > --- POWER ------------ Light Ion Engine > --- PROPULSION ------- Aluminum Leg Aluminum Leg > --- UTILITY ---------- (None) > --- WEAPON ----------- Medium Laser Medium Laser > --- INVENTORY -------- Wheel Wheel [Rating: 5] Favorites ----------- Power Light Ion Engine Engine Light Ion Engine Propulsion Aluminum Leg Leg Aluminum Leg Wheel Wheel Utility None Weapon Medium Laser Energy Gun Medium Laser Build | -11 -10 ------- Run | Scr Mat Slots Evolved . | . . Power . | . . Propulsion . | . . Utility . | . . Weapon . | . . Parts Attached 12 | 9 3 Power 2 | 1 1 Engine 2 | 1 1 Core . | . . Reactor . | . . Propulsion 7 | 6 1 Treads . | . . Leg 5 | 4 1 Wheel 2 | 2 . Hover . | . . Flight . | . . Utility . | . . Device . | . . Storage . | . . Processor . | . . Hackware . | . . Protection . | . . Artifact . | . . Weapon 3 | 2 1 Energy Gun 3 | 2 1 Energy Cannon . | . . Ballistic Gun . | . . Ballistic Cannon . | . . Launcher . | . . Special Weapon . | . . Impact Weapon . | . . Slashing Weapon . | . . Piercing Weapon . | . . Special Melee Weapon . | . . Unidentified Prototypes . | . . Parts Lost 7 | . 7 Power 1 | . 1 Propulsion 3 | . 3 Utility . | . . Weapon 3 | . 3 Highest Loss Streak 5 | . 5 Average Slot Usage (%) 60 | . 60 Engine 13 | . 13 Leg 26 | . 26 Energy Gun 19 | . 19 Naked Turns 5 | . 5 Heaviest Build 7 | 7 7 Greatest Support 20 | 20 20 Greatest Overweight (x) . | . . Average Overweight (x) . | . . Largest Inventory Capacity 4 | 4 4 Average Capacity 4 | 4 4 Most Carried 4 | 4 4 Average Carried 3 | 2 3 Final Capacity 4 | 4 4 Final Carried 4 | 4 2 Class Distribution -------------------- 100% | Mutant Dominant Class ---------------- Mutant | -10/Materials Resources | -11 -10 ----------- Run | Scr Mat Matter Collected 290 | 267 23 Remotely . | . . Salvage Created 235 | 63 172 Parts 13 | 5 8 Haulers Intercepted . | . . Recyclers Shooed . | . . Parts Field Recycled . | . . Retrieved Matter . | . . Parts Self-Destructed . | . . Prevented . | . . Kills | -11 -10 ------- Run | Scr Mat Combat Hostiles Destroyed 4 | 1 3 Melee 1 | . 1 Guns 3 | 1 2 Classes Destroyed 3 | 2 1 Tunneler 1 | 1 . Watcher 1 | . 1 Grunt 4 | 1 3 Best Kill Streak 2 | 2 1 Combat Bots Only 1 | 1 1 Max Kills in Single Turn 1 | 1 1 Gunslinging . | . . Exploded . | . . Melee 1 | . 1 Uniques/NPCs Destroyed . | . . Combat | -11 -10 -------- Run | Scr Mat Damage Taken 733 | 55 678 Core 250 | 43 207 Absorbed by Shields . | . . Core Remaining (%) 82 | 82 . Volleys Fired 23 | 6 17 Largest 2 | 2 2 Hottest 100 | 100 100 Shots Fired 40 | 12 28 Gun 40 | 12 28 Cannon . | . . Launcher . | . . Special . | . . Kinetic . | . . Thermal 40 | 12 28 Explosive . | . . Electromagnetic . | . . Robot Hit Streak 9 | 4 9 Robot Miss Streak 4 | 2 4 Penetration Max . | . . Secondary Targets . | . . Shots Hit Robots 27 | 8 19 Core Hits 19 | 3 16 Critical Hits . | . . Critical Kills . | . . Critical Parts Destroyed . | . . Melee Attacks . | . . Impact . | . . Slashing . | . . Piercing . | . . Sneak Attacks . | . . Combat Hostiles . | . . Follow-up Attacks . | . . Damage Inflicted 304 | 87 217 Guns 275 | 87 188 Cannons . | . . Explosions . | . . Melee . | . . Ramming 29 | . 29 Kinetic . | . . Thermal 275 | 87 188 Explosive . | . . Electromagnetic . | . . Impact . | . . Slashing . | . . Piercing . | . . Highest Corruption 1 | . 1 Average Corruption 1 | . 1 Corruption Purged . | . . Overload Shots . | . . Overflow Damage . | . . Projectiles . | . . Explosions . | . . Melee . | . . Knockbacks . | . . Impact . | . . Kinetic . | . . Secondary . | . . Self-Inflicted Damage 10 | . 10 Shots . | . . Rammed 13 | . 13 Targets Rammed 15 | . 15 Kicked 2 | . 2 Crushed . | . . Highest Temperature 281 | 258 281 Average Temperature 118 | 133 112 Received Heat Transfer 405 | 30 375 Siege Activations . | . . Robots Corrupted . | . . Combat Hostiles . | . . Parts Fried . | . . Impact Corruptions . | . . Robots Melted . | . . Combat Hostiles . | . . Parts Melted 1 | 1 . Heat Transferred 814 | 259 555 Parts Sabotaged . | . . Parts Stolen . | . . Parts Stripped . | . . Power Chain Reactions . | . . Missiles Intercepted . | . . Alert | -11 -10 ------- Run | Scr Mat Peak Influence 183 | 25 183 Initial 16 | . 16 Average 57 | 4 84 Maximum Alert Level . | . . Low Security (%) 100 | 100 100 Level 1 . | . . Level 2 . | . . Level 3 . | . . Level 4 . | . . Level 5 . | . . High Security . | . . Max Security . | . . Squads Dispatched 4 | . 4 Investigation . | . . Extermination . | . . Reinforcement 4 | . 4 Assault . | . . Garrison . | . . Intercept . | . . Construction Impeded . | . . Haulers Reinforced . | . . Stealth | -11 -10 --------- Run | Scr Mat Distress Signals 2 | . 2 Communications Jammed . | . . Distress Signals . | . . Times Spotted 17 | 1 16 Peak Tracking Total 5 | 1 5 Tactical Retreats 2 | . 2 Traps | -11 -10 ------- Run | Scr Mat Traps Triggered . | . . Indirectly . | . . Trap Hack Attempts . | . . Triggered . | . . Disarmed . | . . Reprogrammed . | . . Reused . | . . Traps Extracted . | . . Installed . | . . Triggered . | . . Machines | -11 -10 ---------- Run | Scr Mat Machines Disabled . | . . Max in Single Turn . | . . Machines Sabotaged . | . . Garrisons Compromised . | . . Overloaded Fab Kills . | . . Fab Network Shutdowns . | . . Hacking | -11 -10 --------- Run | Scr Mat Machines Accessed . | . . Terminals . | . . Fabricators . | . . Repair Stations . | . . Recycling Units . | . . Scanalyzers . | . . Garrison Access . | . . Total Hacks . | . . Successful . | . . Failed . | . . Catastrophic . | . . Database Lockouts . | . . Manual . | . . Terminals . | . . Fabricators . | . . Repair Stations . | . . Recycling Units . | . . Scanalyzers . | . . Garrison Access . | . . Terminal Hacks . | . . Fabricator Hacks . | . . Repair Station Hacks . | . . Recycling Unit Hacks . | . . Scanalyzer . | . . Garrison Access Hacks . | . . Unauthorized Hacks . | . . Terminals . | . . Fabricators . | . . Repair Stations . | . . Recycling Units . | . . Scanalyzers . | . . Garrison Access . | . . Data Cores Recovered . | . . Used . | . . Hacking Detections . | . . Full Trace Events . | . . Feedback Events . | . . Feedback Blocked . | . . Robot Schematics Acquired . | . . Robots Built . | . . Matter . | . . Time . | . . Total Robot Build Rating . | . . Part Schematics Acquired . | . . Parts Built . | . . Matter . | . . Time . | . . Total Part Build Rating . | . . Parts Repaired . | . . Time . | . . Parts Recycled . | . . Recycled Matter . | . . Retrieved Matter . | . . Retrieved Components . | . . Parts Scanalyzed . | . . Part Schematics Acquired . | . . Parts Damaged . | . . Bothacking | -11 -10 ------------ Run | Scr Mat Used RIF Installer . | . . Robots Hacked . | . . Non-combat . | . . Combat . | . . Robot Hacks Applied . | . . Relay Couplers Released . | . . Robots Rewired . | . . Allies Hacked . | . . Hacks Repelled . | . . Allies | -11 -10 -------- Run | Scr Mat Total Allies . | . . Largest Group . | . . Highest-Rated Group . | . . Highest-Rated Ally . | . . Total Orders . | . . Ally Attacks . | . . Total Damage . | . . Kills . | . . Allies Corrupted . | . . Allies Melted . | . . Intel | -11 -10 ------- Run | Scr Mat Robot Analysis Total . | . . Derelict Logs Recovered . | . . Drone Launches . | . . Drone Recoveries . | . . Exploration | -11 -10 ------------- Run | Scr Mat Turns Passed 382 | 126 256 Spaces Moved 241 | 83 158 Core 23 | 22 1 Treads . | . . Legs 218 | 61 157 Wheels . | . . Hover . | . . Flight . | . . Fastest Speed 50 | 50 50 Average Speed 113 | 101 119 Slowest Speed 120 | 120 120 Overloaded Moves . | . . Propulsion Burnouts . | . . Robots Hopped . | . . Cave-ins Triggered . | . . Exploration Rate (%) 13 | 6 21 Regions Visited 1 Branch Regions . Pre-discovered Areas . | . . Known Exits Taken . | . . Unknown Exits Taken 1 | 1 . Scrap Searched . | . . Spaces Dug . | . . Terrain Destroyed . | . . Melee . | . . Projectile . | . . AOE . | . . Terrain Rammed . | . . Walls Destroyed . | . . Machines Disabled . | . . Actions | -11 -10 --------- Run | Scr Mat Total 309 | 114 195 Wait 1 | . 1 Move 240 | 82 158 Hop . | . . Pick Up 13 | 12 1 Fast Attach . | . . Attach 10 | 7 3 Detach 2 | 2 . Swap 2 | 2 . Drop 3 | 3 . Fire 23 | 6 17 Melee . | . . Ram 4 | . 4 Kick 11 | . 11 Crush . | . . Escape Stasis . | . . Rewire . | . . Trap . | . . Miscellaneous . | . . Route ------- -11/Scrapyard -10/Materials History --------- Turn | Location | Event 2 | -11/Scrapyard | Met Revision 17 86 | -11/Scrapyard | Discovered new exit (range 8) 127 | -11/Scrapyard | Entered Materials 313 | -10/Materials | Build established: Mutant 359 | -10/Materials | Core integrity fell below 50% 375 | -10/Materials | Core integrity fell below 20% 383 | -10/Materials | Destroyed by G-34 Mercenary with Small Laser Last Messages --------------- serious negative consequences. 00362_ K-01 Serf collects debris. 00362_ Aluminum Leg destroyed. 00364_ Slammed into G-34 Mercenary. 00364_ Aluminum Leg destroyed. 00365_ Slammed into G-34 Mercenary. 00366_ K-01 Serf collects debris. 00366_ Slammed into G-34 Mercenary. 00366_ G-34 Mercenary destroyed. [Achievement: Fist Fight] 00368_ Acquired Ion Engine. 00369_ K-01 Serf collects debris. 00371_ Slammed into G-34 Mercenary. 00372_ Destabilizing: System corrupted (+1). 00373_ Slammed into G-34 Mercenary. 00374_ Kicked G-34 Mercenary out of the way. 00375_ K-01 Serf collects debris. 00376_ Slammed into G-34 Mercenary. 00382_ Aluminum Leg destroyed. 00382_ Slammed into G-34 Mercenary. Map ----- +----------------------------------------------------+ | ?????????????????????????????????????????????????? | | ?????????????????????????????????????????????????? | | ?????????????????????????????????????????????????? | | ?????????????????????????????????????????????????? | | ?????????????????????????????????????????????????? | | ?????????????????????????????????????????????????? | | ?????????????????????????????????????????????????? | | ?????????????????????????????????????????????????? | | ?????????????????????????????????????????????????? | | ?????????????????????????????????????????????????? | | ?????????????????????????????????????????????????? | | ?????????????????????????????????????????????????? | | ?????????????????????????????????????????????????? | | ???????? ??????????????????????????????????????? | | ???????+ ??????????????????????????????????????? | | ???????# ??????????????????????????????????????? | | ???????# ???????????? ????????????????????????? | | ???????# #########+## ????????????????????????? | | ???????# ????????????????????????? | | ???????? ???? ??????????????????? | | ???????? ^ """ ????? #?????????????????? | | ?????????# """"" %####### #?????????????????? | | ?????????# """"" # # ##????????????????? | | ?????????# """"" g # ?????????????????? | | ?????????# """ # %%g# ?????????????????? | | ????###### #%g%@ # ?????????????????? | | ????# #%"""%# #?????????????????? | | ????# % #%""" # #?????????????????? | | ????# %% +%""" # +?????????????????? | | ????# ######### ######## #?????????????????? | | ????# # #?# # # #?????????????????? | | ????# # #?# + # #?????????????????? | | ????# # """ ### # """ # #?????????????????? | | ????# # """ + # """ / #?????????????????? | | ????# # """ ##### # """ # #?????????????????? | | ????# # #???# # # #?????????????????? | | ????# / #???# ##+##### #?????????????????? | | ????# # #???# #???# #?????????????????? | | ????# #""" #???# ##### /?????????????????? | | ????# #"R #???# # ????????????????? | | ????# #""" #???# ######## # ???????????????? | | ????# # #???# #??????##+##?##??????????????? | | ????# #######???# #????????????????????????????? | | ????# #?????????# #????????????????????????????? | | ????# #?????????# #????????????????????????????? | | ????# #?????????# #????????????????????????????? | | ????# #?????????# ?????????????????????????????? | | ????#####?????????? ?????????????????????????????? | | ??????????????????? ?????????????????????????????? | | ??????????????????? ?????????????????????????????? | +----------------------------------------------------+ Best States ------------- Heat Dissipation 25 Energy Generation 10 Energy Capacity 250 Matter Stores 300 Matter Capacity 300 Sight Range 16 Terrain Scan Density 10 Evasion (%) 50 Item Schematics ----------------- None Robot Schematics ------------------ None Fabricated ------------ Nothing Alien Tech Used ----------------- None Achievements -------------- Fist Fight Challenges ------------ None Game ------ Seed HeavyPointPit Manual? 0 Play Time 00:09:59 Cumulative 2.4 hours Start 2021.09.05 @ 23:17:47 End 2021.09.05 @ 23:55:50 Sessions 1 Manual Loads 0 Difficulty Rogue Special Mode None Game No. 7 Rogue 7 Adventurer 0 Explorer 0 Win Type - Total 0 Types 0/0/0/0/0/0/0/0/0 Lore% 2 Gallery% 5 Achievement% 4 Wizard Run 0 Options --------- ASCII 0 Keyboard 1 Movement Numpad Keybinds 1 Fullscreen 2 Font 36/X11 Map View 76x50 Tactical HUD 1 Map Filters NONE Filters NONE Steam 1 RUN: a28a6119-91df-46a1-9e68-67f68ac72c16